bitfinex/quotes_ETHUSD_20251220
["timestamp","ask_amount","ask_price","bid_price","bid_amount"]
[1766219451546,1.5002,2992.6,2992.1,1.5071]
[1766219452811,1.5002,2992.6,2992.1,1.9525]
[1766219455444,1.83862597,2992.6,2992.1,0.4454]
[1766219455608,2.27642597,2992.6,2992.1,0.4454]
[1766219455922,1.5002,2992.4,2992.0,0.001]
[1766219456521,0.4398,2992.5,2992.0,0.001]
[1766219456745,1.94,2992.5,2992.0,1.9535]
[1766219457849,1.5002,2992.4,2992.0,0.4464]
[1766219458147,1.5002,2992.3,2992.0,0.001]
[1766219458551,1.5002,2992.2,2992.0,0.001]
[1766219458750,1.5002,2992.1,2991.7,3.34255902]
[1766219459050,1.5002,2992.1,2991.6,0.4454]
[1766219459347,1.5002,2992.1,2991.6,1.9525]
[1766219459514,1.938,2992.1,2991.6,1.9525]
[1766219460041,1.5002,2992.0,2991.6,1.9525]
[1766219462048,1.00440767,2992.2,2991.5,9.98918315]
[1766219462218,1.44440767,2992.2,2991.7,0.4454]
[1766219462418,1.44440767,2992.2,2991.7,1.9525]
[1766219462649,1.00440767,2992.2,2991.7,5.29505953]
[1766219462948,1.00440767,2992.2,2991.9,1.9525]
[1766219470957,1.9402,2992.4,2992.0,1.8772]
[1766219470958,0.44,2992.4,2992.0,1.8772]
[1766219471139,0.8798,2992.5,2992.1,0.4613]
[1766219471855,2.296,2992.5,2992.1,0.4613]
[1766219473856,0.4571,2992.3,2991.8,0.001]
[1766219474060,1.8733,2992.1,2991.9,0.001]
[1766219474740,0.442,2992.5,2991.5,0.441]
[1766219474741,1.4162,2992.2,2991.5,0.441]
[1766219474938,1.8733,2992.0,2991.5,0.441]
[1766219475141,1.8733,2992.0,2991.6,1.00441776]
[1766219475947,1.8733,2991.9,2991.5,0.001]
[1766219478337,1.8733,2991.9,2991.5,0.62376814]
[1766219479066,0.44,2992.1,2991.5,0.001]
[1766219479366,0.01673752,2992.0,2991.4,0.001]
[1766219479536,1.89003752,2992.0,2991.4,1.8782]
[1766219480180,1.8733,2991.9,2991.4,1.8782]
[1766219481566,1.8733,2991.9,2991.4,0.001]
[1766219481868,0.18900375,2991.8,2991.3,0.001]
[1766219482076,0.4541,2991.5,2991.1,0.001]
[1766219482260,1.4942,2991.4,2991.1,0.001]
[1766219482460,0.4541,2991.5,2991.1,0.001]
[1766219482771,0.4541,2991.5,2991.1,1.00555565]
[1766219482940,0.4541,2991.5,2991.1,1.66564479]
[1766219483337,1.4942,2991.6,2991.1,1.66564479]
[1766219483542,1.4942,2991.6,2991.2,1.811]
[1766219484874,1.4942,2991.6,2991.1,1.66564479]
[1766219485178,0.4541,2991.8,2991.1,1.00555565]
[1766219485377,0.4541,2991.6,2991.1,1.00555565]
[1766219485566,1.9483,2991.6,2991.1,1.00555565]
[1766219486359,1.9483,2991.6,2991.1,1.43335565]
[1766219486876,0.01673752,2992.0,2991.1,0.001]
[1766219486877,1.9483,2991.5,2991.1,0.001]
[1766219487376,1.4942,2991.4,2991.1,0.001]
[1766219489483,0.44,2991.7,2991.2,1.3832]
[1766219489779,0.44,2991.7,2991.3,1.811]
[1766219490680,2.3883,2991.7,2991.3,1.811]
[1766219490978,2.3883,2991.7,2991.3,0.4278]
[1766219491683,0.44,2991.7,2991.1,1.3842]
[1766219491884,1.9483,2991.6,2991.1,1.812]
[1766219492377,1.9483,2991.6,2991.2,0.4278]
[1766219492583,1.9483,2991.6,2991.2,1.811]
[1766219492779,3.39293303,2991.8,2991.2,1.3832]
[1766219492981,3.73390009,2991.8,2991.3,1.811]
[1766219493681,2.23970009,2991.8,2991.3,1.811]
[1766219493880,1.4942,2991.7,2991.3,1.811]
[1766219495883,0.4606,2991.6,2991.1,0.001]
[1766219496075,1.4225,2991.4,2991.1,0.001]
[1766219496392,1.8831,2991.4,2991.1,0.001]
[1766219497254,0.01673752,2991.7,2991.1,0.001]
[1766219497448,0.4606,2991.4,2991.1,0.001]
[1766219497652,1.4225,2991.3,2991.1,0.001]
[1766219497885,1.8831,2991.3,2991.1,0.001]
[1766219504286,0.13396183,2991.5,2991.1,0.001]
[1766219504490,2.01706183,2991.5,2991.1,0.001]
[1766219504787,2.21876801,2991.5,2991.1,0.001]
[1766219504987,1.4225,2991.4,2991.1,0.001]
[1766219507210,1.8831,2991.4,2991.1,0.001]
[1766219507818,0.4606,2991.4,2991.0,0.001]
[1766219508123,1.8831,2991.2,2991.0,0.001]
[1766219510404,1.4225,2991.4,2991.0,0.001]
[1766219510601,1.8831,2991.2,2991.0,0.001]
[1766219512183,1.6423168,2991.4,2991.0,0.001]
[1766219513884,2.1029168,2991.4,2991.0,0.001]
[1766219514084,0.2198168,2991.4,2991.0,0.001]
[1766219514318,1.8831,2991.3,2991.0,0.001]
[1766219515516,0.002,2991.2,2991.0,0.001]
[1766219518415,1.8851,2991.2,2990.9,0.001]
[1766219518981,0.002,2991.2,2990.9,0.001]
[1766219519489,0.002,2991.2,2990.9,1.8386]
[1766219520515,0.002,2991.2,2991.1,0.4445]
[1766219520720,0.13396183,2991.5,2991.1,1.8376]
[1766219521404,2.01706183,2991.5,2991.1,1.8376]
[1766219522215,0.13396183,2991.5,2991.2,1.3931]
[1766219522393,0.13396183,2991.5,2991.3,0.4445]
[1766219522708,0.13396183,2991.5,2991.0,1.8376]
[1766219524627,0.13396183,2991.5,2991.0,1.866]
[1766219524830,0.13396183,2991.5,2991.1,0.4729]
[1766219525430,0.13596183,2991.5,2991.1,0.4729]
[1766219527227,2.08576183,2991.5,2991.1,0.4729]
[1766219528610,2.08576183,2991.5,2991.0,1.867]
[1766219528817,2.08576183,2991.5,2991.0,1.3941]
[1766219529026,1.9518,2991.5,2991.1,0.4729]
[1766219530429,1.9518,2991.5,2991.0,1.3941]
[1766219530799,1.9518,2991.5,2991.0,1.867]
[1766219532430,2.29144734,2991.5,2991.0,0.001]
[1766219532732,1.9498,2991.3,2991.0,0.001]
[1766219535434,1.4935,2991.2,2990.8,0.001]
[1766219535733,0.002,2991.5,2990.8,0.001]
[1766219535734,1.9498,2991.1,2990.8,0.001]
[1766219537139,0.44,2991.3,2990.8,0.001]
[1766219537307,0.9139,2991.4,2991.0,1.8766]
[1766219537308,0.44,2991.4,2991.0,1.8766]
[1766219537631,1.9518,2991.5,2991.0,1.4037]
[1766219537632,0.442,2991.5,2991.0,1.4037]
[1766219537818,0.442,2991.5,2991.1,0.4729]
[1766219538022,0.002,2991.5,2991.1,0.4729]
[1766219538933,0.002,2991.5,2991.1,1.8766]
[1766219540118,1.9518,2991.5,2990.9,1.4037]
[1766219540320,1.9518,2991.5,2990.9,1.8766]
[1766219542039,1.9518,2991.5,2991.0,0.001]
[1766219542718,1.5138,2991.4,2991.0,0.001]
[1766219543113,2.0057,2991.4,2991.0,0.001]
[1766219545641,0.4919,2991.4,2991.0,0.001]
[1766219545845,2.0057,2991.4,2991.0,0.001]
[1766219546137,1.5138,2991.3,2991.0,0.001]
[1766219546331,2.0057,2991.3,2991.0,0.001]
[1766219548452,0.33616,2991.4,2991.0,0.001]
[1766219548453,1.5158,2991.5,2991.1,1.8939]
[1766219548615,1.5158,2991.5,2991.0,0.001]
[1766219548815,2.0057,2991.4,2991.0,0.001]
[1766219549842,2.0057,2991.3,2990.8,0.001]
[1766219550147,2.0057,2991.3,2990.8,1.8949]
[1766219550341,2.0057,2991.3,2990.9,0.001]
[1766219556845,2.0057,2991.3,2990.9,1.8821]
[1766219557152,1.78999553,2991.4,2990.9,1.8821]
[1766219557355,3.25279553,2991.4,2990.9,1.8821]
[1766219557759,1.78999553,2991.4,2990.9,1.8821]
[1766219558055,1.9557,2991.3,2990.9,0.001]
[1766219564544,1.4628,2991.3,2990.9,0.001]
[1766219564868,1.9557,2991.2,2990.9,0.001]
[1766219568773,0.002,2991.3,2991.0,1.8811]
[1766219569273,0.002,2991.3,2990.9,0.001]
[1766219570345,0.34244575,2991.3,2990.9,0.001]
[1766219571278,2.29814575,2991.3,2990.9,0.001]
[1766219574283,0.34244575,2991.3,2990.8,0.001]
[1766219574484,0.002,2991.3,2990.8,0.001]
[1766219574850,1.9557,2991.2,2990.8,0.001]
[1766219576356,1.4628,2991.1,2990.8,0.001]
[1766219578685,0.002,2991.3,2990.8,1.8821]
[1766219578986,0.002,2991.3,2990.9,1.8811]
[1766219581782,0.002,2991.3,2991.0,0.4623]
[1766219582156,0.002,2991.3,2990.9,1.4188]
[1766219582889,0.002,2991.3,2991.0,9.55351562]
[1766219583069,0.002,2991.3,2991.1,0.4623]
[1766219583271,0.002,2991.3,2991.0,1.4188]
[1766219583792,0.002,2991.3,2990.9,0.4623]
[1766219585293,0.002,2991.3,2990.9,0.4633]
[1766219585499,0.002,2991.3,2991.0,9.55277762]
[1766219585668,0.002,2991.3,2990.9,1.9345]
[1766219587993,0.002,2991.3,2990.9,0.001]
[1766219587994,2.0042,2991.2,2990.9,0.001]
[1766219588590,2.0042,2991.1,2990.8,0.001]
[1766219591897,0.4896,2991.1,2990.8,0.001]
[1766219592198,1.5146,2991.0,2990.8,0.001]
[1766219593002,2.0042,2991.0,2990.7,0.001]
[1766219593170,0.4896,2991.1,2990.7,0.001]
[1766219593502,0.4896,2990.9,2990.7,0.001]
[1766219593668,0.4896,2990.9,2990.8,0.001]
[1766219593868,0.4896,2991.1,2990.8,0.001]
[1766219594068,0.441,2991.2,2990.8,0.001]
[1766219594264,0.68572,2991.2,2990.8,0.001]
[1766219594493,2.4452,2991.2,2990.8,0.001]
[1766219595502,2.0042,2991.1,2990.8,0.001]
[1766219597180,0.441,2991.2,2990.8,1.9677]
[1766219604631,1.8835,2991.2,2990.8,1.9677]
[1766219604918,0.441,2991.2,2990.8,0.001]
[1766219605222,1.8997,2991.1,2990.8,0.001]
[1766219606304,1.8997,2991.0,2990.7,0.001]
[1766219606500,1.8997,2990.9,2990.7,0.001]
[1766219608724,1.4425,2990.9,2990.7,0.001]
[1766219609144,0.4572,2991.1,2990.7,0.001]
[1766219609329,1.8997,2991.1,2990.7,0.001]
[1766219610526,1.8997,2991.1,2990.7,1.8031]
[1766219611725,0.441,2991.2,2990.7,1.8031]
[1766219612330,1.8835,2991.2,2990.7,1.8031]
[1766219612502,0.23427,2991.1,2990.7,1.8031]
[1766219615228,0.441,2991.2,2990.8,1.7923]
[1766219615400,0.441,2991.2,2990.9,1.7923]
[1766219618837,0.002,2991.3,2990.9,1.7923]
[1766219620001,1.7544,2991.2,2990.7,0.4693]
[1766219620202,1.7544,2991.2,2990.7,5.13699685]
[1766219620430,1.7544,2991.2,2990.7,4.66869685]
[1766219620637,1.7544,2991.2,2990.8,0.4683]
[1766219621335,1.7544,2991.2,2990.8,0.4693]
[1766219621634,1.7564,2991.2,2990.8,0.4693]
[1766219622235,0.002,2991.2,2990.9,1.7923]
[1766219623637,0.002,2991.2,2990.9,1.324]
[1766219623842,0.002,2991.2,2991.0,0.4683]
[1766219624631,0.002,2991.2,2990.9,1.324]
[1766219627845,0.002,2991.2,2990.8,0.001]
[1766219628015,1.7564,2991.2,2990.8,0.001]
[1766219628908,1.7564,2991.2,2990.8,0.4693]
[1766219629944,1.7564,2991.2,2990.8,1.7933]
[1766219635315,0.002,2991.2,2990.9,1.7923]
[1766219639626,0.002,2991.3,2990.9,3.90051647]
[1766219639826,0.002,2991.3,2991.1,0.4683]
[1766219640027,0.002,2991.3,2991.1,1.7923]
[1766219643827,0.002,2991.3,2991.1,0.4683]
[1766219644241,0.002,2991.3,2990.9,2.34934798]
[1766219644451,0.002,2991.3,2991.0,0.46635399]
[1766219646458,0.002,2991.3,2991.0,0.89465399]
[1766219648348,0.002,2991.3,2991.0,0.4283]
[1766219650366,0.002,2991.3,2990.8,1.43397004]
[1766219650571,1.662,2991.3,2990.8,1.43397004]
[1766219652075,1.662,2991.3,2990.8,2.74707004]
[1766219652368,1.662,2991.3,2990.8,2.31877004]
[1766219652572,1.662,2991.3,2990.9,0.4283]
[1766219654196,1.662,2991.3,2990.8,1.00567004]
[1766219654400,1.66,2991.2,2990.8,1.00567004]
[1766219658676,1.66,2991.2,2990.8,1.43397004]
[1766219660275,1.66,2991.2,2990.8,2.74707004]
[1766219662136,0.002,2991.3,2990.8,2.74707004]
[1766219662632,1.6156,2991.3,2990.8,2.74707004]
[1766219663004,0.002,2991.3,2990.8,1.00567004]
[1766219663208,0.002,2991.3,2990.8,0.001]
[1766219663506,0.4412,2991.2,2990.8,0.001]
[1766219663705,1.1724,2991.1,2990.8,0.001]
[1766219664614,1.1724,2991.1,2990.8,1.00567004]
[1766219670444,1.1724,2991.1,2990.8,0.001]
[1766219671254,0.002,2991.2,2990.8,0.001]
[1766219671565,1.6136,2991.1,2990.8,0.001]
[1766219672110,0.002,2991.2,2990.8,0.001]
[1766219672316,1.6136,2991.1,2990.8,0.001]
[1766219672517,1.1724,2991.0,2990.8,0.001]
[1766219674226,0.4412,2991.1,2990.8,0.001]
[1766219676452,1.6728,2991.1,2990.8,0.001]
[1766219681676,0.002,2991.2,2990.9,1.1724]
[1766219681852,0.002,2991.2,2991.0,1.5682]
[1766219682048,0.002,2991.2,2991.0,11.12183237]
[1766219682252,0.002,2991.2,2991.0,1.5682]
[1766219682973,0.002,2991.2,2990.9,0.44]
[1766219687692,1.2316,2991.1,2990.9,0.44]
[1766219687862,1.2316,2991.1,2990.8,0.001]
[1766219688391,1.2316,2991.1,2990.8,0.441]
[1766219688761,1.6635,2991.1,2990.8,0.441]
[1766219689303,1.6635,2991.1,2990.8,0.001]
[1766219689606,1.6635,2991.1,2990.8,1.00573397]
[1766219690163,1.2316,2991.0,2990.8,1.00573397]
[1766219690364,1.6635,2991.0,2990.8,1.00573397]
[1766219691481,1.6655,2991.2,2990.8,1.00573397]
[1766219695411,0.002,2991.2,2990.8,12.1278705]
[1766219696987,0.002,2991.2,2990.8,2.57393397]
[1766219697994,1.2336,2991.2,2990.8,2.57393397]
[1766219702429,1.6655,2991.2,2990.8,2.57393397]
[1766219702626,1.6655,2991.2,2990.8,1.40153397]
[1766219702806,1.6655,2991.2,2990.8,1.00573397]
[1766219703335,1.2316,2991.1,2990.8,0.001]
[1766219703638,1.6635,2991.1,2990.8,0.001]
[1766219705007,1.1828,2991.1,2990.8,0.001]
[1766219705211,0.3978,2991.0,2990.8,0.001]
[1766219707024,0.002,2991.2,2990.7,0.001]
[1766219707225,1.5806,2991.1,2990.7,0.001]
[1766219707421,0.3978,2991.0,2990.7,0.001]
[1766219707629,1.1828,2990.9,2990.7,0.001]
[1766219709041,0.3978,2991.0,2990.7,0.001]
[1766219709731,0.13596856,2991.2,2990.8,9.55393653]
[1766219709919,0.002,2991.2,2990.9,1.5983]
[1766219710124,0.002,2991.2,2990.9,2.60302724]
[1766219710555,0.002,2991.2,2990.9,0.4148]
[1766219710765,0.002,2991.2,2991.0,0.442]
[1766219711422,1.5826,2991.2,2991.0,0.442]
[1766219711748,1.78506,2991.2,2991.0,0.442]
[1766219712845,0.20446,2991.2,2991.0,0.442]
[1766219713019,1.5806,2991.1,2991.0,0.442]
[1766219713219,0.002,2991.2,2991.0,0.442]
[1766219713462,0.002,2991.2,2990.8,0.001]
[1766219713620,0.002,2991.2,2990.8,1.42057098]
[1766219714725,0.002,2991.2,2990.9,1.5983]
[1766219714926,0.002,2991.2,2990.9,2.60302724]
[1766219715944,0.002,2991.2,2991.0,0.4148]
[1766219716144,0.002,2991.2,2991.0,1.5983]
[1766219719029,0.002,2991.2,2991.0,2.0383]
[1766219721560,0.002,2991.3,2991.0,2.0383]
[1766219721779,0.002,2991.9,2991.5,0.3989]
[1766219722231,1.5694,2991.9,2991.5,0.3989]
[1766219722636,1.5694,2991.9,2991.6,1.00454893]
[1766219723132,1.32418125,2991.9,2991.6,1.00454893]
[1766219723534,0.74485196,2991.9,2991.6,1.00454893]
[1766219724332,0.002,2992.2,2991.6,1.00454893]
[1766219724333,0.002,2992.2,2991.7,11.06423622]
[1766219724534,0.74685196,2992.4,2991.7,9.55443622]
[1766219724945,0.002,2992.4,2992.0,1.5098]
[1766219725743,0.002,2992.4,2988.9,3.53503025]
[1766219725744,0.01003076,2992.3,2991.4,1.5098]
[1766219725948,0.01003076,2992.1,2991.3,3.34294635]
[1766219726145,0.01003076,2991.7,2991.0,0.3989]
[1766219726339,1.1578,2991.5,2991.0,0.3989]
[1766219727137,1.00461284,2991.4,2991.0,4.85309833]
[1766219727340,1.00461284,2991.4,2991.2,0.3989]
[1766219727540,1.00461284,2991.4,2991.2,1.5098]
[1766219728151,1.00461284,2991.4,2991.2,0.3989]
[1766219729561,0.0015,2991.7,2991.2,1.5098]
[1766219729750,1.00461284,2991.6,2991.2,1.5098]
[1766219731266,0.002,2991.4,2991.3,0.3989]
[1766219731474,1.00461284,2991.6,2991.3,1.5098]
[1766219735153,1.00461284,2991.6,2991.1,0.4047]
[1766219735359,2.17911284,2991.6,2991.1,0.4047]
[1766219736272,1.00951284,2991.6,2991.0,2.14831284]
[1766219736473,1.1794,2991.5,2991.0,2.14831284]
[1766219738669,1.00461284,2991.6,2991.0,6.12530252]
[1766219738876,0.439,2991.9,2991.2,1.5484]
[1766219738877,1.1745,2991.7,2991.2,1.5484]
[1766219739248,1.1745,2991.6,2991.0,3.18766163]
[1766219739447,1.1797,2991.6,2991.0,3.18766163]
[1766219739973,1.1797,2991.6,2991.0,1.63926163]
[1766219740165,1.1799,2991.4,2991.0,1.00561284]
[1766219740679,1.00461621,2991.7,2991.0,1.00561284]
[1766219740680,0.0054,2991.3,2991.0,1.00561284]
[1766219740886,1.1799,2991.3,2991.0,1.00561284]
[1766219749085,1.1799,2991.3,2991.0,0.001]
[1766219751875,1.1799,2991.3,2990.8,0.44]
[1766219752186,0.441,2991.5,2990.7,4.34931163]
[1766219752187,1.1745,2991.1,2990.7,1.00564312]
[1766219752488,1.1745,2990.9,2990.5,0.44]
[1766219755793,1.686108,2991.1,2990.6,1.5484]
[1766219757588,0.684,2991.0,2990.5,0.44]
[1766219758282,0.684,2991.0,2990.5,0.001]
[1766219760479,1.004808,2991.1,2990.6,1.1437]
[1766219760683,1.004808,2991.1,2990.8,1.1437]
[1766219760983,1.004808,2991.1,2990.9,1.5484]
[1766219761566,0.439,2991.3,2990.9,1.5484]
[1766219761767,1.004808,2991.2,2990.9,1.5484]
[1766219762169,0.002,2991.5,2991.0,0.4047]
[1766219762401,0.002,2991.5,2991.1,1.5484]
[1766219762575,0.002,2991.5,2990.7,0.439]
[1766219762576,1.1765,2991.5,2990.9,0.4047]
[1766219762782,1.1899,2991.5,2990.9,1.5484]
[1766219765801,1.1899,2991.5,2991.0,0.3948]
[1766219766402,0.002,2991.5,2991.0,0.3948]
[1766219766606,0.002,2991.5,2991.0,1.555]
[1766219769192,0.002,2991.5,2991.1,0.3948]
[1766219769503,0.002,2991.5,2991.3,1.555]
[1766219771410,1.00667677,2991.9,2991.2,1.555]
[1766219771591,0.002,2991.9,2991.5,0.3948]
[1766219772777,0.002,2991.9,2991.5,1.1602]
[1766219772978,0.002,2991.9,2991.6,0.3948]
[1766219773694,0.002,2991.9,2991.7,1.555]
[1766219774098,0.002,2991.9,2991.7,0.3948]
[1766219774979,0.4687,2992.3,2991.7,0.3948]
[1766219775174,1.1863,2992.2,2991.7,0.3948]
[1766219775775,1.1863,2992.2,2991.7,1.39918413]
[1766219777700,0.439,2992.3,2991.7,2.55938413]
[1766219777901,0.002,2992.4,2991.7,2.55938413]
[1766219777902,0.002,2992.4,2992.0,1.1602]
[1766219778111,0.002,2992.4,2992.1,1.555]
[1766219784284,0.002,2992.4,2992.1,0.3948]
[1766219784580,0.002,2992.4,2991.9,10.74030543]
[1766219784814,0.002,2992.4,2991.9,11.15610543]
[1766219786726,0.002,2992.4,2992.0,0.4158]
[1766219787014,1.2136,2992.4,2991.9,1.1911]
[1766219787514,1.2136,2992.4,2991.8,1.00436059]
[1766219787515,1.1713,2992.2,2991.8,1.00436059]
[1766219789126,1.1713,2992.2,2991.9,0.001]
[1766219789814,1.1713,2992.2,2991.4,9.54920543]
[1766219789815,9.59170543,2992.1,2991.3,0.4158]
[1766219790134,0.395,2991.8,2991.3,0.4158]
[1766219790887,0.395,2991.8,2991.0,10.55472408]
[1766219790888,0.3546,2991.5,2991.0,0.001]
[1766219791089,0.3978,2991.3,2991.0,0.001]
[1766219791818,0.3546,2991.3,2991.0,0.001]
[1766219792523,0.3993,2991.3,2991.0,0.001]
[1766219793525,0.403,2991.1,2990.7,13.33288755]
[1766219797430,0.403,2991.1,2991.0,0.001]
[1766219797901,0.403,2991.1,2990.7,3.78368212]
[1766219800801,0.403,2991.1,2990.7,0.44]
[1766219801629,0.403,2991.1,2990.7,3.7836978]
[1766219802905,1.4437306,2991.3,2990.5,9.55504217]
[1766219803231,1.4437306,2991.3,2990.6,3.34373951]
[1766219803406,1.4437306,2991.3,2990.5,9.55504217]
[1766219804307,1.4437306,2991.3,2990.5,11.15704217]
[1766219804629,0.439,2991.3,2990.6,4.94573951]
[1766219804811,1.0047306,2991.2,2990.7,1.602]
[1766219806032,0.002,2991.1,2990.6,3.34473951]
[1766219806331,0.002,2991.1,2990.6,0.001]
[1766219806842,1.0067306,2991.1,2990.6,0.001]
[1766219807134,1.0067306,2991.1,2990.6,1.603]
[1766219807718,1.0067306,2991.1,2990.6,0.001]
[1766219809429,1.0067306,2991.1,2990.6,1.603]
[1766219810928,0.002,2991.1,2990.6,0.001]
[1766219812837,0.002,2991.1,2990.5,0.001]
[1766219815709,0.002,2991.1,2990.5,1.603]
[1766219815916,0.002,2991.1,2990.5,0.713]
[1766219816213,0.002,2991.1,2990.5,0.714]
[1766219816631,0.002,2991.1,2990.5,0.001]
[1766219819817,0.002,2991.1,2990.3,0.001]
[1766219820017,1.33681252,2991.1,2990.3,0.001]
[1766219821123,1.33681252,2991.1,2990.3,1.603]
[1766219821320,0.01003109,2990.8,2989.9,1.603]
[1766219821539,0.01003109,2990.8,2989.6,0.001]
[1766219821540,1.60199999,2989.8,2989.7,1.1794]
[1766219821740,1.60199999,2989.8,2989.7,0.001]
[1766219822121,1.60199999,2989.8,2989.7,1.603]
[1766219822617,1.45409156,2990.7,2989.7,11.15704217]
[1766219822817,1.00506047,2990.7,2989.8,1.1784]
[1766219823130,1.33681252,2991.1,2990.5,9.55404217]
[1766219823331,0.442,2991.1,2990.5,9.55404217]
[1766219823553,0.002,2991.1,2990.5,9.55404217]
[1766219823746,1.6708986,2993.2,2990.9,9.55404217]
[1766219823747,0.0468,2992.0,2990.9,9.55404217]
[1766219823948,1.4447306,2991.6,2990.9,9.55404217]
[1766219824246,0.0468,2991.8,2990.9,9.55404217]
[1766219824444,0.44,2991.6,2990.9,9.55404217]
[1766219825452,0.44,2991.6,2991.0,1.7164]
[1766219826051,0.0534,2991.7,2991.0,1.7164]
[1766219826227,0.4955,2991.6,2991.0,1.7164]
[1766219828367,0.4955,2991.6,2991.0,1.2645]
[1766219828544,0.44,2991.6,2991.1,1.7164]
[1766219828930,0.44,2991.6,2990.9,9.55404217]
[1766219829156,0.44,2991.6,2991.0,0.4519]
[1766219829384,7.3249,2991.9,2991.4,0.4519]
[1766219829385,6.36,2991.9,2991.4,0.4519]
[1766219829586,6.36,2991.9,2991.3,9.55404217]
[1766219829587,0.44,2991.9,2991.5,0.4519]
[1766219831177,0.002,2991.6,2991.5,0.4519]
[1766219831748,0.44,2991.9,2991.5,0.4519]
[1766219832867,0.44,2992.2,2991.5,9.55404217]
[1766219833245,6.362,2992.3,2991.5,9.55404217]
[1766219833456,6.802,2992.3,2991.7,9.55404217]
[1766219833656,7.36649847,2992.3,2991.9,2.85811301]
[1766219833857,0.78084985,2992.2,2991.7,9.55404217]
[1766219834078,6.362,2992.3,2991.7,9.55404217]
[1766219834649,6.362,2992.3,2991.8,1.7164]
[1766219834845,6.362,2992.3,2992.0,1.2645]
[1766219835045,6.362,2992.3,2992.0,1.7164]
[1766219836981,6.362,2992.3,2991.7,0.44]
[1766219837281,6.362,2992.3,2991.8,1.7164]
[1766219837654,8.0318,2992.3,2991.8,1.7164]
[1766219837850,8.87938,2992.3,2991.8,1.7164]
[1766219838868,7.20958,2992.3,2991.7,0.44]
[1766219839067,8.0318,2992.3,2991.8,1.7164]
[1766219839295,1.2416,2992.2,2991.8,1.7164]
[1766219839476,1.2416,2992.2,2991.7,0.44]
[1766219839773,1.6698,2992.2,2991.7,0.44]
[1766219842459,1.6698,2992.2,2991.7,2.2777]
[1766219842689,6.362,2992.3,2991.7,2.2777]
[1766219842690,6.362,2992.3,2991.8,1.8377]
[1766219843594,6.362,2992.3,2991.9,1.8377]
[1766219844899,0.5187,2992.2,2991.7,0.44]
[1766219845199,1.8613,2992.2,2991.7,0.44]
[1766219845399,6.362,2992.3,2991.7,2.2777]
[1766219845603,1.8613,2992.2,2991.7,2.2777]
[1766219848606,1.8633,2992.2,2991.7,2.2777]
[1766219849498,1.8633,2992.2,2991.7,1.7722]
[1766219849705,1.8633,2992.2,2991.7,2.2777]
[1766219851296,1.3446,2992.2,2991.7,0.44]
[1766219851472,1.8633,2992.2,2991.7,0.44]
[1766219852072,0.002,2992.2,2991.7,0.44]
[1766219852309,1.8613,2992.1,2991.7,0.44]
[1766219852876,0.002,2992.2,2991.7,0.44]
[1766219853383,1.8613,2992.0,2991.7,0.44]
[1766219858701,0.002,2992.2,2991.7,0.44]
[1766219859002,1.8716,2992.2,2991.7,0.44]
[1766219859304,1.3673,2992.2,2991.7,0.44]
[1766219859506,0.002,2992.3,2991.8,1.4008]
[1766219859800,0.002,2992.3,2992.1,0.5092]
[1766219860002,0.002,2992.3,2992.1,1.91]
[1766219863280,0.002,2992.4,2992.2,0.5092]
[1766219863491,0.002,2992.4,2992.2,1.91]
[1766219863706,0.002,2992.4,2992.2,2.43521317]
[1766219864202,0.002,2992.3,2992.2,2.43521317]
[1766219864897,0.002,2992.3,2992.2,1.91]
[1766219865098,0.002,2992.3,2991.8,3.34242718]
[1766219865408,0.002,2992.3,2991.9,1.91]
[1766219865802,0.002,2992.3,2991.7,2.35]
[1766219866005,1.8716,2992.3,2991.7,2.35]
[1766219866205,1.8716,2992.3,2991.7,2.91936254]
[1766219866711,1.8696,2992.2,2991.7,0.44]
[1766219866905,0.002,2992.3,2991.7,0.44]
[1766219867085,1.3653,2992.0,2991.7,0.44]
[1766219867294,1.8696,2992.0,2991.7,0.44]
[1766219867497,1.8696,2992.0,2991.7,3.7825624]
[1766219868112,1.8696,2992.2,2991.7,3.7825624]
[1766219868691,1.8696,2992.2,2991.7,0.44]
[1766219868903,0.5043,2992.1,2991.6,0.001]
[1766219869205,0.441,2992.3,2991.2,0.439]
[1766219869206,9.54801058,2991.9,2991.2,0.439]
[1766219869383,10.94181164,2991.9,2991.1,1.91]
[1766219869579,0.5043,2991.7,2991.0,0.001]
[1766219869800,10.94181164,2991.9,2991.0,0.001]
[1766219869801,1.8696,2991.6,2991.0,0.001]
[1766219870004,1.8696,2991.6,2991.0,1.4018]
[1766219870204,1.8696,2991.6,2991.0,4.74515388]
[1766219870885,1.8696,2991.6,2991.0,5.25435388]
[1766219871986,1.8696,2991.6,2991.1,1.4008]
[1766219872213,1.8696,2991.6,2991.1,1.91]
[1766219872997,0.44,2991.9,2991.3,1.4008]
[1766219873193,1.3653,2992.0,2991.1,1.91]
[1766219873396,0.439,2991.9,2991.4,1.91]
[1766219873588,0.439,2991.9,2991.5,1.91]
[1766219873986,1.3653,2992.0,2991.6,0.03342692]